bitfinex/quotes_SOLUSD_20250108
["timestamp","ask_amount","ask_price","bid_price","bid_amount"]
[1736338534323,0.76649113,196.23,196.16,217.9]
[1736338538523,1.6535,196.25,196.19,9.97388579]
[1736338538727,0.76649113,196.29,196.21,9.97388579]
[1736338539131,20.76649113,196.29,196.21,227.87388579]
[1736338539343,1.608,196.3,196.24,9.97388579]
[1736338540028,1.608,196.3,196.23,147.07388579]
[1736338540267,1.608,196.3,196.23,137.1]
[1736338542435,1.608,196.3,196.23,147.07388579]
[1736338543839,1.608,196.3,196.23,137.1]
[1736338545161,1.608,196.3,196.23,217.9]
[1736338545757,1.608,196.3,196.23,227.87388579]
[1736338546352,0.76649113,196.32,196.24,9.97388579]
[1736338546769,0.76649113,196.32,196.23,227.87388579]
[1736338547135,20.76649113,196.32,196.23,227.87388579]
[1736338547341,0.76649113,196.32,196.23,227.87388579]
[1736338547558,20.76649113,196.33,196.23,227.87388579]
[1736338550167,20.76649113,196.33,196.23,217.9]
[1736338550738,20.76649113,196.33,196.23,227.87388579]
[1736338558254,1.605,196.34,196.25,227.87388579]
[1736338558643,20.0,196.33,196.26,9.97388579]
[1736338559440,1.605,196.34,196.28,9.97388579]
[1736338559650,1.605,196.34,196.29,12.37388579]
[1736338559959,1.605,196.34,196.29,2.4]
[1736338560367,2.37149113,196.34,196.29,2.4]
[1736338560571,1.605,196.34,196.29,2.4]
[1736338560756,2.37149113,196.34,196.29,2.4]
[1736338561145,2.37149113,196.34,196.27,220.3]
[1736338561450,2.37149113,196.34,196.27,83.2]
[1736338562170,8.40899113,196.34,196.27,83.2]
[1736338562546,20.0,196.31,196.27,80.8]
[1736338562763,0.76649113,196.3,196.24,137.1]
[1736338563465,0.76649113,196.32,196.24,137.1]
[1736338565581,20.0,196.31,196.24,137.1]
[1736338565770,0.76649113,196.3,196.23,2.4]
[1736338566079,1.6651,196.29,196.21,2.4]
[1736338566267,0.76649113,196.28,196.21,2.4]
[1736338567269,1.6651,196.29,196.21,2.4]
[1736338567579,1.6651,196.29,196.22,9.97388579]
[1736338567950,1.6651,196.29,196.21,2.4]
[1736338568773,1.6651,196.29,196.21,12.37388579]
[1736338568976,1.6651,196.29,196.21,2.4]
[1736338569580,1.6311,196.33,196.24,9.97388579]
[1736338570082,1.6311,196.33,196.22,24.54112877]
[1736338570083,1.6311,196.33,196.25,9.97388579]
[1736338570581,1.6311,196.33,196.22,24.54112877]
[1736338570582,1.6311,196.33,196.26,9.97388579]
[1736338571168,1.6311,196.33,196.26,147.07388579]
[1736338571363,6.4518,196.39,196.28,33.75076979]
[1736338571364,14.4515988,196.38,196.28,33.75076979]
[1736338571584,15.21808993,196.38,196.29,2.4]
[1736338575190,15.21808993,196.38,196.29,139.5]
[1736338577679,15.21808993,196.38,196.29,137.1]
[1736338577989,20.0,196.35,196.29,137.1]
[1736338578175,0.76649113,196.34,196.29,137.1]
[1736338581181,0.76649113,196.34,196.26,139.5]
[1736338583389,0.76649113,196.34,196.26,2.4]
[1736338583601,20.76649113,196.34,196.26,2.4]
[1736338584276,1.511,196.33,196.26,2.4]
[1736338584490,0.76649113,196.32,196.26,2.4]
[1736338584974,0.76649113,196.32,196.23,220.3]
[1736338587701,0.76649113,196.32,196.23,83.2]
[1736338587994,20.0,196.28,196.23,80.8]
[1736338588183,0.76649113,196.27,196.23,80.8]
[1736338590332,0.76649113,196.27,196.21,137.1]
[1736338590479,1.6608,196.26,196.21,137.1]
[1736338590685,0.76649113,196.25,196.21,137.1]
[1736338592096,1.6608,196.26,196.21,137.1]
[1736338595225,0.76649113,196.25,196.21,137.1]
[1736338595614,1.6608,196.26,196.21,137.1]
[1736338595998,1.6608,196.26,196.19,220.3]
[1736338597713,0.76649113,196.25,196.19,220.3]
[1736338602133,0.76649113,196.25,196.19,83.2]
[1736338603034,1.6608,196.26,196.19,83.2]
[1736338603408,6.0755,196.31,196.21,9.97388579]
[1736338603409,7.6087,196.31,196.21,9.97388579]
[1736338603745,1.5332,196.31,196.22,9.97388579]
[1736338604036,2.29969113,196.31,196.22,9.97388579]
[1736338604223,2.29969113,196.31,196.21,227.87388579]
[1736338605039,2.29969113,196.31,196.22,9.97388579]
[1736338605224,1.5332,196.31,196.22,227.87388579]
[1736338605539,2.40489113,196.35,196.25,227.87388579]
[1736338605708,4.46112253,196.35,196.26,2.4]
[1736338605904,4.46112253,196.35,196.26,139.5]
[1736338606541,20.0,196.33,196.26,137.1]
[1736338606745,0.76649113,196.32,196.26,137.1]
[1736338610635,20.76649113,196.32,196.26,137.1]
[1736338611232,20.76649113,196.32,196.25,80.8]
[1736338612739,20.76649113,196.32,196.25,80.8]
[1736338617061,20.76649113,196.32,196.18,8.0196]
[1736338617062,20.0,196.31,196.2,217.9]
[1736338617353,1.6247,196.29,196.2,217.9]
[1736338617557,0.76649113,196.28,196.2,217.9]
[1736338618472,0.76649113,196.28,196.2,80.8]
[1736338618763,20.76649113,196.28,196.2,80.8]
[1736338619046,20.0,196.24,196.2,80.8]
[1736338619250,0.76649113,196.23,196.16,2.4]
[1736338620245,0.76649113,196.23,196.14,217.9]
[1736338620462,0.76649113,196.23,196.14,220.3]
[1736338621259,0.76649113,196.23,196.14,217.9]
[1736338621559,0.76649113,196.23,196.14,220.3]
[1736338622674,1.5849,196.22,196.14,80.8]
[1736338622839,0.76649113,196.21,196.14,80.8]
[1736338623740,7.03469113,196.21,196.14,80.8]
[1736338623942,20.0,196.18,196.11,137.1]
[1736338624137,20.76649113,196.17,196.11,137.1]
[1736338624343,0.76649113,196.17,196.09,126.7]
[1736338627486,1.5368,196.16,196.04,80.8]
[1736338627644,23.776884,196.12,196.03,7.95118678]
[1736338627844,20.0,196.09,196.03,7.95118678]
[1736338628067,0.76649113,196.08,196.03,7.95118678]
[1736338628439,2.31609113,196.08,196.03,7.95118678]
[1736338628858,1.5496,196.08,196.03,7.95118678]
[1736338629141,1.6494,196.13,196.05,227.87388579]
[1736338629378,2.00177735,196.16,196.06,230.27388579]
[1736338629675,0.76649113,196.17,196.07,147.07388579]
[1736338630049,20.0,196.15,196.07,147.07388579]
[1736338630250,0.76649113,196.17,196.07,227.87388579]
[1736338630449,1.6494,196.18,196.09,227.87388579]
[1736338630655,1.6494,196.18,196.11,147.07388579]
[1736338630954,1.6494,196.18,196.11,137.1]
[1736338631150,1.6494,196.18,196.07,143.6657]
[1736338632946,1.6494,196.18,196.07,137.1]
[1736338633248,21.6494,196.18,196.07,137.1]
[1736338633455,21.6494,196.18,196.07,147.07388579]
[1736338633651,1.6494,196.18,196.07,147.07388579]
[1736338634557,1.6494,196.18,196.07,137.1]
[1736338635465,2.41589113,196.18,196.07,147.07388579]
[1736338635670,2.41589113,196.18,196.08,9.97388579]
[1736338635868,2.41589113,196.18,196.09,9.97388579]
[1736338636055,1.6494,196.18,196.09,9.97388579]
[1736338636258,1.6494,196.18,196.09,227.87388579]
[1736338637400,1.6494,196.18,196.12,9.97388579]
[1736338637769,8.1691,196.23,196.13,12.37388579]
[1736338638078,1.5486,196.23,196.16,9.97388579]
[1736338638284,6.4292,196.28,196.17,147.83830347]
[1736338638285,0.76649113,196.27,196.17,147.83830347]
[1736338638487,0.76649113,196.27,196.18,9.97388579]
[1736338638682,20.0,196.25,196.17,147.07388579]
[1736338638866,0.76649113,196.27,196.17,137.1]
[1736338639480,1.5486,196.28,196.18,10.73826935]
[1736338639775,1.5486,196.28,196.2,147.07388579]
[1736338640011,1.5486,196.28,196.18,81.56438356]
[1736338640012,1.5486,196.28,196.21,150.23811778]
[1736338640216,1.5486,196.28,196.21,149.47388579]
[1736338640913,7.9778,196.33,196.23,9.97388579]
[1736338641115,20.0,196.3,196.23,9.97388579]
[1736338641616,20.0,196.3,196.22,147.07388579]
[1736338641819,20.76649113,196.3,196.22,137.1]
[1736338642812,20.0,196.3,196.22,137.1]
[1736338643928,0.76649113,196.29,196.22,137.1]
[1736338645721,0.76649113,196.29,196.19,2.4]
[1736338646104,0.76649113,196.29,196.18,217.9]
[1736338646280,0.76649113,196.29,196.19,0.76435373]
[1736338646489,20.0,196.3,196.19,10.73823952]
[1736338646797,0.76649113,196.29,196.19,0.76435373]
[1736338646994,0.76649113,196.29,196.18,220.3]
[1736338647818,0.76649113,196.29,196.18,230.27388579]
[1736338648026,20.0,196.25,196.18,220.3]
[1736338648198,20.0,196.25,196.18,217.9]
[1736338648693,20.0,196.21,196.18,2.4]
[1736338652920,20.0,196.21,196.15,137.1]
[1736338655131,20.0,196.21,196.14,217.9]
[1736338656611,1.6429,196.24,196.15,10.73841569]
[1736338656831,1.6429,196.24,196.15,0.7645299]
[1736338657002,8.91139113,196.29,196.18,9.97388579]
[1736338657320,1.6443,196.29,196.2,9.97388579]
[1736338657626,1.6443,196.29,196.21,139.5]
[1736338658028,1.6443,196.29,196.21,149.47388579]
[1736338658226,1.6443,196.29,196.21,139.5]
[1736338658730,1.6443,196.29,196.21,149.47388579]
[1736338659416,1.6443,196.29,196.21,155.09799345]
[1736338660918,1.6443,196.29,196.21,139.5]
[1736338661121,20.0,196.25,196.18,137.1]
[1736338663209,4.0443,196.29,196.18,217.9]
[1736338663609,1.6443,196.29,196.18,217.9]
[1736338664613,0.76649113,196.28,196.18,217.9]
[1736338664808,23.776884,196.27,196.18,217.9]
[1736338665039,20.0,196.24,196.18,217.9]
[1736338665406,0.76649113,196.26,196.18,217.9]
[1736338665607,20.0,196.24,196.18,217.9]
[1736338666538,20.0,196.25,196.18,217.9]
[1736338666932,2.41079113,196.29,196.19,0.76431264]
[1736338667249,1.6443,196.29,196.19,217.9]
[1736338667450,0.76649113,196.28,196.19,217.9]
[1736338672132,0.76649113,196.28,196.16,217.9]
[1736338672133,20.0,196.21,196.16,217.9]
[1736338672814,20.76649113,196.28,196.16,217.9]
[1736338673042,20.0,196.24,196.16,217.9]
[1736338673221,0.76649113,196.23,196.16,217.9]
[1736338675236,20.0,196.22,196.16,217.9]
[1736338680260,2.0625051,196.28,196.16,217.9]
[1736338680476,0.76649113,196.27,196.16,217.9]
[1736338680760,20.0,196.25,196.16,217.9]
[1736338682277,0.76649113,196.31,196.18,22.08639345]
[1736338682466,0.76649113,196.31,196.19,15.59799345]
[1736338682641,20.0,196.33,196.2,2.38]
[1736338682837,20.0,196.28,196.2,220.28]
[1736338683059,20.0,196.26,196.21,2.38]
[1736338683471,0.76649113,196.25,196.21,2.38]
[1736338683765,20.76649113,196.32,196.21,2.38]
[1736338683972,0.76649113,196.32,196.21,220.28]
[1736338684144,20.0,196.28,196.21,220.28]
[1736338684349,23.776884,196.31,196.21,220.28]
[1736338684565,2.30249113,196.35,196.22,16.36220389]
[1736338685046,20.0,196.34,196.23,15.59799345]
[1736338685282,0.76649113,196.33,196.24,2.38]
[1736338686149,12.9507988,196.38,196.28,15.59799345]
[1736338686369,12.9507988,196.38,196.29,15.59799345]
[1736338686572,12.9507988,196.38,196.33,233.49799345]
[1736338686779,12.9507988,196.38,196.34,15.59799345]
[1736338686974,12.9507988,196.38,196.33,220.28]
[1736338688075,20.0,196.35,196.33,217.9]
[1736338688378,20.0,196.35,196.3,2.38]
[1736338688670,23.776884,196.34,196.27,217.9]
[1736338689277,23.776884,196.34,196.25,145.0618]
[1736338689476,23.776884,196.34,196.25,160.65979345]
[1736338689648,20.0,196.35,196.27,15.59799345]
[1736338690182,20.0,196.35,196.27,217.9]
[1736338690396,23.776884,196.34,196.27,80.8]
[1736338691659,24.54337513,196.34,196.27,80.8]
[1736338692659,24.54337513,196.34,196.26,137.1]
[1736338692660,20.0,196.31,196.26,137.1]
[1736338692983,20.0,196.31,196.2,228.0067]
[1736338692984,20.0,196.26,196.2,228.0067]
[1736338695086,20.0,196.26,196.2,224.0269]
[1736338695495,20.0,196.26,196.2,217.9]
[1736338697487,23.776884,196.25,196.15,21.67989345]
[1736338697687,20.0,196.26,196.15,137.86440432]
[1736338697688,0.76649113,196.26,196.15,137.86440432]
[1736338697894,2.38,196.28,196.15,137.1]
[1736338698196,0.76649113,196.27,196.15,137.1]
[1736338698563,20.0,196.23,196.15,137.1]
[1736338698757,23.776884,196.21,196.15,137.1]
[1736338701397,0.76649113,196.22,196.15,137.1]
[1736338701590,2.38,196.25,196.15,137.1]
[1736338701901,20.0,196.22,196.15,137.1]
[1736338705282,20.76649113,196.22,196.15,137.1]
[1736338706586,20.0,196.2,196.15,217.9]
[1736338709776,20.0,196.2,196.15,80.8]
[1736338710370,0.76649113,196.19,196.15,80.8]
[1736338711202,20.0,196.15,196.11,80.8]
[1736338711814,2.29379113,196.22,196.11,80.8]
[1736338712103,43.776884,196.21,196.11,217.9]
[1736338712300,20.0,196.19,196.11,217.9]
[1736338713411,2.03665982,196.24,196.13,15.59799345]
[1736338713618,0.76649113,196.26,196.14,218.66447977]
[1736338713781,20.0,196.22,196.14,217.9]
[1736338713979,20.0,196.22,196.14,233.49799345]
[1736338714306,2.29369113,196.27,196.15,6.5211]
[1736338714692,20.0,196.24,196.16,0.76442687]
[1736338714894,23.776884,196.26,196.16,0.76442687]
[1736338715583,20.0,196.24,196.16,0.76442687]
[1736338717117,20.0,196.27,196.17,15.59799345]
[1736338717289,2.28959113,196.33,196.18,234.26225315]
[1736338717492,2.28959113,196.33,196.2,15.59799345]
[1736338717696,23.776884,196.32,196.21,3.14415387]
[1736338717888,1.5231,196.33,196.21,221.04415387]
[1736338718082,1.5231,196.33,196.22,137.1]
[1736338718298,0.76649113,196.32,196.22,137.1]
[1736338718817,23.776884,196.31,196.22,137.1]
[1736338719122,20.0,196.28,196.22,2.38]
[1736338720921,1.5231,196.33,196.22,139.48]
[1736338721090,2.28959113,196.33,196.22,139.48]
[1736338721289,1.5231,196.33,196.22,139.48]
[1736338722025,1.5231,196.33,196.23,6.88642469]
[1736338722431,1.5231,196.33,196.23,6.1223]
[1736338723426,20.0,196.32,196.23,6.88641647]
[1736338723591,20.0,196.32,196.23,6.1223]
[1736338724892,20.0,196.32,196.23,224.0223]
[1736338727797,20.0,196.32,196.23,226.4023]
[1736338728193,20.0,196.32,196.23,224.0223]
[1736338728436,20.76649113,196.32,196.23,224.0223]
[1736338729108,20.76649113,196.32,196.23,86.9223]
[1736338729316,20.0,196.28,196.23,86.9223]
[1736338731524,20.0,196.33,196.23,224.0223]
[1736338731821,0.76649113,196.34,196.23,239.62029345]
[1736338732028,2.01777741,196.36,196.23,224.0223]
[1736338732233,23.776884,196.34,196.23,224.0223]
[1736338732522,20.0,196.35,196.23,224.0223]
[1736338733040,20.0,196.31,196.23,239.62029345]
[1736338733404,20.0,196.31,196.24,0.76405838]
[1736338733609,14.5061988,196.38,196.26,1.6058]
[1736338733807,15.27268993,196.38,196.26,2.36974244]
[1736338734037,20.0,196.35,196.26,2.36974244]
[1736338734423,12.9507988,196.38,196.27,220.28]
[1736338734730,12.9507988,196.38,196.29,217.9]
[1736338735113,20.0,196.35,196.29,217.9]
[1736338735623,20.0,196.35,196.28,6.398]
[1736338736025,20.76649113,196.35,196.28,6.398]
[1736338736424,20.0,196.35,196.28,6.398]
[1736338739840,20.0,196.35,196.28,87.198]
[1736338740723,20.76649113,196.35,196.28,87.198]
[1736338741230,20.0,196.31,196.28,80.8]
[1736338742760,20.0,196.31,196.23,6.2168]
[1736338742761,20.0,196.27,196.23,6.2168]
[1736338745159,20.0,196.27,196.22,137.1]
[1736338745324,20.0,196.23,196.18,226.6705]
[1736338745520,20.0,196.23,196.18,224.2905]
[1736338748760,20.0,196.23,196.18,87.1905]
[1736338749561,20.0,196.28,196.18,240.65286752]
[1736338749720,20.0,196.28,196.18,239.88849345]
[1736338750237,20.0,196.25,196.18,239.88849345]
[1736338751458,20.0,196.25,196.18,224.2905]
[1736338752262,20.0,196.25,196.18,239.88849345]
[1736338755536,20.0,196.25,196.18,224.2905]
[1736338758368,20.0,196.25,196.18,239.88849345]
[1736338758679,20.0,196.25,196.18,224.2905]
[1736338761456,23.776884,196.24,196.18,224.2905]
[1736338761760,20.0,196.21,196.18,87.1905]
[1736338762063,20.0,196.21,196.18,80.8]
[1736338766875,23.776884,196.2,196.18,80.8]
[1736338767089,23.776884,196.22,196.18,80.8]
[1736338767466,20.0,196.19,196.18,80.8]
[1736338771371,43.776884,196.19,196.13,6.5404]
[1736338772285,20.0,196.14,196.1,137.1]
[1736338772458,20.0,196.12,196.1,137.1]
[1736338774503,1.5313,196.2,196.08,224.3974]
[1736338774663,0.76649113,196.19,196.09,9.99432356]
[1736338774863,20.0,196.15,196.08,234.39172356]
[1736338775365,20.0,196.15,196.08,240.01608063]
[1736338775563,20.0,196.16,196.08,224.3974]
[1736338775981,24.54337513,196.15,196.08,224.3974]
[1736338776372,20.0,196.12,196.08,224.3974]
[1736338778286,20.0,196.12,196.08,87.2974]
[1736338781502,2.29779113,196.2,196.08,224.3974]
[1736338782075,43.776884,196.19,196.08,224.3974]
[1736338782275,20.0,196.14,196.08,240.01608063]
[1736338782600,20.0,196.14,196.08,224.3974]
[1736338784494,23.776884,196.13,196.08,224.3974]
[1736338784796,20.0,196.1,196.06,80.8]
[1736338785788,20.0,196.16,196.07,15.61868063]
[1736338786301,20.0,196.12,196.07,233.51868063]
[1736338786470,20.0,196.12,196.07,217.9]
[1736338789321,23.776884,196.11,196.07,217.9]
[1736338789523,24.54337513,196.11,196.07,217.9]
[1736338790278,24.54337513,196.11,196.03,86.9848]
[1736338790480,20.0,196.08,196.03,86.9848]
[1736338790809,20.0,196.08,196.03,80.8]
[1736338793523,43.776884,196.15,196.03,234.28359793]
[1736338793683,20.0,196.15,196.06,15.61868063]
[1736338793883,1.6326,196.16,196.07,16.38350994]
[1736338794082,2.30019113,196.21,196.08,152.71868063]
[1736338794325,20.0,196.15,196.08,137.1]
[1736338794513,23.776884,196.18,196.08,137.1]
[1736338794818,20.0,196.15,196.08,137.1]
[1736338795018,1.5337,196.21,196.09,15.61868063]
[1736338795315,0.76649113,196.2,196.08,233.51868063]
[1736338795495,20.76649113,196.2,196.08,233.51868063]
[1736338795704,20.0,196.16,196.08,233.51868063]
[1736338796030,23.776884,196.19,196.08,233.51868063]
[1736338796214,20.0,196.16,196.1,15.61868063]
[1736338796515,20.0,196.16,196.09,1.5895]
[1736338796731,23.776884,196.16,196.09,138.6895]
[1736338797604,20.0,196.13,196.09,138.6895]
[1736338797936,23.776884,196.12,196.06,9.0064]
[1736338798424,20.0,196.09,196.06,9.0064]
[1736338799416,20.0,196.09,196.06,2.38]
[1736338799623,20.0,196.09,196.01,226.3256]
[1736338800098,20.0,196.09,196.01,223.9456]
[1736338800304,20.0,196.05,196.01,6.0456]
[1736338800504,24.54337513,196.08,195.98,183.02]
[1736338800505,20.76649113,196.08,195.98,183.02]
[1736338800823,23.776884,196.07,195.98,183.02]
[1736338801023,20.0,196.04,195.98,183.02]
[1736338801324,20.0,196.0,195.98,45.92]
[1736338801622,20.0,196.04,195.98,45.92]
[1736338801623,0.76649113,196.11,195.98,183.02]
[1736338801805,20.0,196.07,195.98,183.02]
[1736338802005,20.0,196.03,195.98,183.02]
[1736338803003,23.776884,196.02,195.98,45.92]
[1736338803603,20.0,195.99,195.98,45.92]
[1736338804821,20.0,195.97,195.91,143.3837]
[1736338804999,20.0,195.97,195.92,2.38]
[1736338806913,2.38,196.09,195.94,15.61868063]
[1736338807120,23.776884,196.02,195.95,2.38]
[1736338807524,20.0,195.99,195.95,2.38]
[1736338808228,0.76649113,196.09,195.96,15.61868063]
[1736338808404,0.76649113,196.09,195.97,15.61868063]
[1736338808730,20.0,196.05,195.97,233.51868063]
[1736338809323,0.76649113,196.11,195.99,15.61868063]
[1736338809631,1.5358,196.12,196.01,159.32868063]
[1736338809931,1.5358,196.12,196.02,2.38]
[1736338810307,0.76649113,196.11,196.02,2.38]
[1736338810933,23.776884,196.1,196.02,2.38]
[1736338811140,23.776884,196.06,196.02,2.38]
[1736338811434,20.0,196.03,195.97,143.3082]
[1736338812321,23.776884,196.02,195.97,6.2082]
[1736338812541,24.54337513,196.02,195.95,139.48]
[1736338812850,23.776884,196.02,195.95,139.48]
[1736338814338,20.0,196.07,195.96,15.61868063]
[1736338814544,24.54337513,196.06,195.96,15.61868063]
[1736338814715,20.0,196.02,195.96,233.51868063]
[1736338814918,20.0,196.02,195.96,217.9]
[1736338815131,23.776884,196.07,195.96,217.9]
[1736338815435,20.0,196.02,195.96,233.51868063]
[1736338815937,23.776884,196.08,195.97,218.66514092]
[1736338816142,0.76649113,196.09,195.99,15.61868063]
[1736338816319,0.76649113,196.11,196.0,16.38369496]
[1736338816640,23.776884,196.1,196.0,16.38369496]
[1736338816943,20.0,196.07,196.01,15.61868063]
[1736338817348,20.0,196.08,196.01,153.4836636]
[1736338817519,20.0,196.08,196.01,137.1]
[1736338817720,1.5358,196.12,196.02,152.71868063]
[1736338820543,20.0,196.01,195.94,217.9]
[1736338820924,23.776884,196.0,195.94,80.8]
[1736338822272,20.0,195.97,195.93,143.2253]
[1736338822971,20.0,195.97,195.93,6.1253]
[1736338823256,20.0,195.97,195.9,219.4536]
[1736338823544,20.0,195.97,195.9,235.07228063]
[1736338823752,20.0,195.97,195.91,15.61868063]
[1736338823933,1.6371,196.02,195.93,15.61868063]
[1736338824120,0.76649113,196.03,195.93,15.61868063]
[1736338824327,20.0,195.99,195.93,15.61868063]
[1736338824556,20.0,195.99,195.92,152.71868063]
[1736338824735,20.0,195.99,195.92,137.1]
[1736338824935,23.776884,195.98,195.93,2.38]
[1736338827153,20.0,195.95,195.93,2.38]
[1736338827537,20.0,195.95,195.9,80.8]
[1736338827743,20.0,195.95,195.9,83.18]
[1736338828137,20.0,195.95,195.9,80.8]
[1736338828542,24.54337513,195.94,195.86,140.31374721]
[1736338828742,20.0,195.91,195.86,142.69374721]
[1736338829253,1.5493,195.97,195.87,152.71868063]
[1736338829433,0.76649113,196.0,195.88,234.28429269]
[1736338829631,0.76649113,196.02,195.87,2.38]
[1736338829832,43.776884,196.01,195.87,2.38]
[1736338830063,20.0,195.98,195.87,2.38]
[1736338830271,20.0,195.93,195.87,139.48]
[1736338832358,0.76649113,195.92,195.86,3.21374721]
[1736338832551,23.776884,195.91,195.84,6.3944]
[1736338832734,20.0,195.88,195.82,137.1]
[1736338832934,20.0,195.88,195.82,139.48]
[1736338833564,23.776884,195.87,195.82,139.48]
[1736338833975,23.776884,195.87,195.73,137.1]
[1736338833976,20.0,195.8,195.73,137.1]
[1736338834142,20.0,195.78,195.73,145.00656323]
[1736338834779,20.0,195.78,195.73,7.90656323]
[1736338835273,20.0,195.78,195.71,143.7261]
[1736338835571,20.0,195.78,195.71,159.34478063]
[1736338835740,11.6545,195.9,195.73,15.61868063]
[1736338835741,20.0,195.87,195.73,15.61868063]
[1736338835946,0.76649113,195.86,195.73,15.61868063]
[1736338836152,20.0,195.82,195.73,16.38472802]
[1736338836360,20.0,195.82,195.73,15.61868063]
[1736338836542,20.0,195.82,195.73,16.38476971]
[1736338836862,20.0,195.82,195.72,152.71868063]
[1736338837047,20.0,195.82,195.73,16.38477522]
[1736338837434,20.0,195.82,195.73,0.76609459]
[1736338837641,20.0,195.83,195.72,152.71868063]
[1736338837946,20.0,195.79,195.72,137.1]
[1736338838670,20.0,195.82,195.72,137.1]
[1736338838855,20.76649113,195.82,195.72,137.1]
[1736338839054,20.0,195.82,195.72,137.1]
[1736338839366,23.776884,195.85,195.74,15.61868063]
[1736338839566,24.54337513,195.85,195.74,15.61868063]
[1736338839771,20.0,195.82,195.74,15.61868063]
[1736338839962,20.0,195.82,195.75,16.38469934]
[1736338840144,20.0,195.82,195.76,233.51868063]
[1736338840349,0.76649113,195.88,195.76,233.51868063]
[1736338840350,23.776884,195.87,195.76,233.51868063]
[1736338840564,20.0,195.84,195.77,152.71868063]
[1736338840775,20.0,195.84,195.77,137.1]
[1736338842070,23.776884,195.83,195.77,137.1]
[1736338842278,20.0,195.8,195.71,152.71868063]
[1736338842460,20.0,195.8,195.72,16.3848191]
[1736338842966,20.0,195.8,195.72,153.4848191]
[1736338843274,20.0,195.8,195.72,137.1]
[1736338843662,20.0,195.8,195.72,139.48]
[1736338844810,10.6385,195.9,195.77,152.71868063]
[1736338845080,10.6385,195.9,195.8,15.61868063]
[1736338845081,1.604,195.9,195.8,15.61868063]
[1736338845272,1.604,195.9,195.81,233.51868063]
[1736338845478,0.76649113,195.93,195.82,15.61868063]
[1736338845724,0.76649113,195.94,195.82,16.38442384]
[1736338845970,0.76649113,195.94,195.83,15.61868063]
[1736338846178,20.0,195.92,195.83,15.61868063]
[1736338846360,20.0,195.92,195.83,16.38435681]
[1736338846543,20.0,195.92,195.84,15.61868063]
[1736338846965,20.0,195.92,195.83,0.76567618]
[1736338847365,20.0,195.92,195.83,25.82026555]
[1736338848291,23.776884,195.94,195.83,25.82026555]
[1736338848494,24.54337513,195.94,195.83,25.82026555]
[1736338848680,20.0,195.91,195.83,25.82026555]
[1736338849084,20.0,195.91,195.84,25.05458937]
[1736338850101,23.776884,195.9,195.83,137.1]
[1736338850763,1.576,195.95,195.84,25.05458937]
[1736338851384,20.0,195.91,195.85,25.82021748]
[1736338851878,1.576,195.95,195.86,25.05458937]
[1736338852085,0.76649113,195.99,195.87,243.72012187]
[1736338852289,23.776884,195.98,195.87,242.95458937]
[1736338852590,23.776884,195.98,195.88,27.43458937]
[1736338852792,0.76649113,195.99,195.88,245.33458937]
[1736338853092,1.5713,196.0,195.88,220.28]
[1736338853278,24.54337513,195.99,195.88,220.28]
[1736338853790,20.0,195.96,195.88,220.28]
[1736338854295,20.0,195.96,195.89,0.76548589]
[1736338854687,0.76649113,196.05,195.92,25.05458937]
[1736338854870,0.76649113,196.05,195.92,162.91989692]
[1736338855068,23.776884,196.04,195.9,2.38]
[1736338855292,20.0,195.99,195.9,2.38]